fUST/lending_fUST_20250916
["ID","MTS","AMOUNT","RATE_DAILY","PERIOD"]
[385690738,1757971842911,-479.36,0.00024657,3]
[385690741,1757971842921,-480.0,0.00024657,3]
[385690742,1757971842929,-480.0,0.00024657,3]
[385690744,1757971842939,-491.56994838,0.00024657,3]
[385690747,1757971842948,-293.09929543,0.00024657,3]
[385690748,1757971842957,-480.0,0.00024657,3]
[385690750,1757971842966,-480.0,0.00024657,3]
[385690752,1757971842975,-480.0,0.00024657,3]
[385690754,1757971842984,-480.0,0.00024657,3]
[385690756,1757971842994,-480.0,0.00024657,3]
[385690758,1757971843003,-480.0,0.00024657,3]
[385690760,1757971843012,-480.0,0.00024657,3]
[385690762,1757971843021,-160.0,0.00024657,3]
[385690764,1757971843030,-480.0,0.00024657,3]
[385690765,1757971843039,-480.0,0.00024657,3]
[385690767,1757971843048,-480.0,0.00024657,3]
[385690769,1757971843057,-480.0,0.00024657,3]
[385690771,1757971843067,-480.0,0.00024657,3]
[385690773,1757971843076,-480.0,0.00024657,3]
[385690775,1757971843087,-480.0,0.00024657,3]
[385690777,1757971843096,-480.0,0.00024657,3]
[385690779,1757971843106,-160.0,0.00024657,3]
[385690781,1757971843115,-480.0,0.00024657,3]
[385690783,1757971843126,-197.72290171,0.00024657,3]
[385690785,1757971843136,-480.0,0.00024657,3]
[385690787,1757971843145,-480.0,0.00024657,3]
[385690789,1757971843154,-531.33695587,0.00024657,3]
[385690791,1757971843163,-480.0,0.00024657,3]
[385690793,1757971843172,-404.45856065,0.00024657,3]
[385690795,1757971843181,-480.0,0.00024657,3]
[385690797,1757971843190,-1444.88,0.00024657,3]
[385690799,1757971843199,-480.0,0.00024657,3]
[385690801,1757971843208,-480.0,0.00024657,3]
[385690803,1757971843217,-731.4,0.00024657,3]
[385690805,1757971843227,-300.65084158,0.00024657,3]
[385690807,1757971843236,-480.0,0.00024657,3]
[385690809,1757971843245,-480.0,0.00024657,3]
[385690811,1757971843254,-480.0,0.00024657,3]
[385690813,1757971843263,-480.0,0.00024657,3]
[385690815,1757971843272,-569.79233446,0.00024657,3]
[385690817,1757971843282,-480.0,0.00024657,3]
[385690819,1757971843291,-417.15472785,0.00024657,3]
[385690821,1757971843299,-151.0,0.00024657,7]
[385690822,1757971843309,-480.0,0.00024657,3]
[385690824,1757971843318,-480.0,0.00024657,3]
[385690826,1757971843327,-480.0,0.00024657,3]
[385690828,1757971843336,-151.0,0.00024657,7]
[385690830,1757971843345,-847.45018724,0.00024657,3]
[385690832,1757971843354,-151.0,0.00024657,7]
[385690834,1757971843363,-167.067319,0.00024657,7]
[385690836,1757971843372,-480.0,0.00024657,3]
[385690838,1757971843381,-480.0,0.00024657,3]
[385690840,1757971843390,-480.0,0.00024657,3]
[385690842,1757971843399,-480.0,0.00024657,3]
[385690844,1757971843408,-1405.61,0.00024657,3]
[385690846,1757971843417,-480.0,0.00024657,3]
[385690848,1757971843426,-480.0,0.00024657,3]
[385690850,1757971843435,-480.0,0.00024657,3]
[385690852,1757971843444,-480.0,0.00024657,3]
[385690854,1757971843454,-480.0,0.00024657,3]
[385690856,1757971843463,-480.0,0.00024657,3]
[385690858,1757971843472,-480.0,0.00024657,3]
[385690860,1757971843481,-831.95,0.00024657,3]
[385690862,1757971843490,-160.0,0.00024657,3]
[385690864,1757971843499,-480.0,0.00024657,3]
[385690866,1757971843509,-480.0,0.00024657,3]
[385690868,1757971843517,-480.0,0.00024657,3]
[385690870,1757971843527,-222.601903,0.00024657,7]
[385690872,1757971843536,-480.0,0.00024657,3]
[385690874,1757971843546,-480.0,0.00024657,3]
[385690876,1757971843555,-480.0,0.00024657,3]
[385690878,1757971843564,-323.44098962,0.00024657,3]
[385690880,1757971843573,-480.0,0.00024657,3]
[385690882,1757971843583,-480.0,0.00024657,3]
[385690884,1757971843592,-480.0,0.00024657,3]
[385690886,1757971843601,-480.0,0.00024657,3]
[385690888,1757971843611,-156.5,0.00024657,3]
[385690889,1757971843620,-500.0,0.00024658,2]
[385690890,1757971843629,-500.0,0.00024673,2]
[385690891,1757971843638,-500.0,0.00024673,2]
[385690892,1757971843647,-150.0,0.00024673,2]
[385690893,1757971843740,-5888.0,0.00024678,2]
[385690894,1757971843753,-151.0,0.000247,10]
[385690895,1757971843762,-22309.888401,0.00024754,2]
[385690896,1757971843771,-151.0,0.00024755,7]
[385690897,1757971843780,-151.0,0.00024755,7]
[385690898,1757971843790,-165.559,0.00024763,8]
[385690899,1757971843799,-174.59529717,0.000248,2]
[385690900,1757971843808,-4447.63257048,0.000248,2]
[385690901,1757971843819,-500.0,0.00024873,2]
[385690902,1757971843827,-151.39913976,0.00024873,2]
[385690903,1757971843836,-151.0,0.00024873,7]
[385690904,1757971843845,-847.45018724,0.00024874,2]
[385690905,1757971843854,-3884.7365654,0.00024893,2]
[385690906,1757971843863,-200.0,0.00024899,2]
[385690907,1757971843873,-164.89100626,0.00024899,2]
[385690909,1757971843882,-155.0,0.00024899,2]
[385690911,1757971843891,-7004.98721671,0.000249,2]
[385690913,1757971843900,-1543.51974352,0.000249,2]
[385690915,1757971843910,-74830.7248563,0.000249,2]
[385690917,1757971843919,-3469.44650349,0.000249,2]
[385690919,1757971843928,-11814.1293353,0.000249,2]
[385690921,1757971843937,-151.0,0.000249,7]
[385690923,1757971843947,-151.698056,0.000249,7]
[385690925,1757971843956,-4232.8670225,0.000249,2]
[385690927,1757971843965,-151.0,0.000249,7]
[385690929,1757971843975,-151.0,0.000249,7]
[385690931,1757971843985,-198.0,0.000249,7]
[385690933,1757971843994,-151.0,0.000249,7]
[385690936,1757971844003,-2012.36362086,0.000249,2]
[385690937,1757971844012,-151.0,0.000249,7]
[385690940,1757971844024,-358.9493997,0.000249,2]
[385690942,1757971844033,-151.0,0.000249,7]
[385690944,1757971844042,-473.3482954,0.000249,2]
[385690946,1757971844051,-15817.6360869,0.000249,2]
[385690948,1757971844060,-150000.0,0.000249,2]
[385690950,1757971844069,-106740.10679801,0.000249,2]
[385690951,1757971844079,-221.555421,0.000249,7]
[385690953,1757971844088,-151.0,0.000249,7]
[385690955,1757971844099,-151.0,0.000249,7]
[385690958,1757971844108,-151.0,0.000249,7]
[385690959,1757971844118,-151.0,0.000249,7]
[385690962,1757971844128,-151.0,0.000249,7]
[385690964,1757971844138,-151.0,0.000249,7]
[385690965,1757971844149,-229.055452,0.000249,7]
[385690967,1757971844160,-214.016444,0.000249,7]
[385690969,1757971844170,-1893.39318159,0.000249,2]
[385690972,1757971844181,-459.42121681,0.000249,2]
[385690973,1757971844190,-15943.8837441,0.000249,2]
[385690976,1757971844199,-151.0,0.000249,7]
[385690978,1757971844208,-151.0,0.000249,7]
[385690980,1757971844218,-518794.474526,0.000249,2]
[385690982,1757971844227,-151.0,0.000249,7]
[385690984,1757971844236,-206.604516,0.000249,7]
[385690985,1757971844245,-151.0,0.000249,7]
[385690987,1757971844254,-151.0,0.000249,7]
[385690989,1757971844263,-151.0,0.000249,7]
[385690991,1757971844272,-1435.79759878,0.000249,2]
[385690993,1757971844281,-160.0,0.000249,7]
[385690996,1757971844291,-217.82061966,0.000249,7]
[385690998,1757971844300,-15597.60897655,0.000249,2]
[385690999,1757971844310,-1000.0,0.000249,2]
[385691002,1757971844320,-1000.0,0.000249,2]
[385691003,1757971844330,-1000.0,0.000249,2]
[385691005,1757971844341,-1000.0,0.000249,2]
[385691007,1757971844351,-1000.0,0.000249,2]
[385691010,1757971844362,-1000.0,0.000249,2]
[385691012,1757971844372,-1000.0,0.000249,2]
[385691013,1757971844381,-1000.0,0.000249,2]
[385691016,1757971844391,-1000.0,0.000249,2]
[385691017,1757971844399,-1000.0,0.000249,2]
[385691020,1757971844409,-1000.0,0.000249,2]
[385691022,1757971844418,-1000.0,0.000249,2]
[385691023,1757971844428,-1000.0,0.000249,2]
[385691025,1757971844437,-1000.0,0.000249,2]
[385691027,1757971844447,-1000.0,0.000249,2]
[385691029,1757971844456,-1000.0,0.000249,2]
[385691032,1757971844466,-1000.0,0.000249,2]
[385691034,1757971844476,-1000.0,0.000249,2]
[385691036,1757971844485,-1000.0,0.000249,2]
[385691037,1757971844495,-1000.0,0.000249,2]
[385691039,1757971844504,-1000.0,0.000249,2]
[385691041,1757971844513,-1000.0,0.000249,2]
[385691043,1757971844523,-1000.0,0.000249,2]
[385691045,1757971844532,-1000.0,0.000249,2]
[385691047,1757971844541,-1000.0,0.000249,2]
[385691049,1757971844550,-1000.0,0.000249,2]
[385691052,1757971844559,-1000.0,0.000249,2]
[385691054,1757971844568,-1000.0,0.000249,2]
[385691055,1757971844578,-1000.0,0.000249,2]
[385691057,1757971844587,-1000.0,0.000249,2]
[385691059,1757971844597,-359.464904,0.000249,2]
[385691061,1757971844606,-274.01834626,0.00024907,2]
[385691063,1757971844615,-2000.0,0.00024916,2]
[385691066,1757971844625,-1392.68942554,0.00024916,2]
[385691067,1757971844635,-2000.0,0.00024916,2]
[385691069,1757971844644,-1114.69456251,0.00024916,2]
[385691071,1757971844654,-504.12729615,0.00024916,2]
[385691073,1757971844665,-311.4249746,0.00024916,2]
[385691075,1757971844674,-2000.0,0.00024916,2]
[385691077,1757971844683,-2000.0,0.00024916,2]
[385691079,1757971844692,-2000.0,0.00024916,2]
[385691081,1757971844702,-2000.0,0.00024916,2]
[385691083,1757971844711,-237.42360078,0.00024916,2]
[385691085,1757971844720,-2000.0,0.00024916,2]
[385691087,1757971844730,-2000.0,0.00024916,2]
[385691089,1757971844740,-290.77588044,0.00024916,2]
[385691092,1757971844750,-232.59984929,0.00024916,2]
[385691093,1757971844760,-500.0,0.00024916,2]
[385691096,1757971844771,-587.87228375,0.00024916,2]
[385691098,1757971844780,-766.43320919,0.00024916,2]
[385691101,1757971844807,-1233.56679081,0.00024916,2]
[385691103,1757971844815,-2000.0,0.00024916,2]
[385691105,1757971844825,-500.0,0.00024917,2]
[385691107,1757971844834,-168.0,0.00024926,2]
[385691109,1757971844844,-160.0,0.00024931,3]
[385691111,1757971844853,-610.93389343,0.00024931,3]
[385691113,1757971844863,-500.0,0.00024931,3]
[385691115,1757971844872,-163.0,0.00024931,3]
[385691117,1757971844882,-233.24851325,0.00024931,3]
[385691119,1757971844891,-291.97287705,0.00024931,3]
[385691121,1757971844900,-232.23319811,0.00024931,3]
[385691123,1757971844909,-480.0,0.00024931,3]
[385691125,1757971844918,-480.0,0.00024931,3]
[385691127,1757971844927,-480.0,0.00024931,3]
[385691129,1757971844937,-480.0,0.00024931,3]
[385691131,1757971844946,-480.0,0.00024931,3]
[385691133,1757971844955,-480.0,0.00024931,3]
[385691135,1757971844964,-480.0,0.00024931,3]
[385691137,1757971844974,-480.0,0.00024931,3]
[385691139,1757971844983,-480.0,0.00024931,3]
[385691141,1757971844993,-480.0,0.00024931,3]
[385691143,1757971845002,-480.0,0.00024931,3]
[385691145,1757971845012,-480.0,0.00024931,3]
[385691147,1757971845021,-480.0,0.00024931,3]
[385691149,1757971845031,-480.0,0.00024931,3]
[385691152,1757971845041,-280.77,0.00024931,3]
[385691153,1757971845056,-480.0,0.00024931,3]
[385691156,1757971845075,-480.0,0.00024931,3]
[385691157,1757971845085,-614.13449829,0.00024931,3]
[385691158,1757971845096,-531.33695587,0.00024931,3]
[385691160,1757971845105,-480.0,0.00024931,3]
[385691162,1757971845115,-1444.88,0.00024931,3]
[385691164,1757971845124,-480.0,0.00024931,3]
[385691166,1757971845133,-517.51955345,0.00024931,3]
[385691168,1757971845142,-480.0,0.00024931,3]
[385691170,1757971845151,-731.4,0.00024931,3]
[385691172,1757971845160,-480.0,0.00024931,3]
[385691173,1757971845169,-480.0,0.00024931,3]
[385691174,1757971845178,-480.0,0.00024931,3]
[385691175,1757971845187,-480.0,0.00024931,3]
[385691176,1757971845196,-548.36,0.00024931,3]
[385691177,1757971845205,-417.15472785,0.00024931,3]
[385691178,1757971845214,-480.0,0.00024931,3]
[385691179,1757971845223,-480.0,0.00024931,3]
[385691180,1757971845232,-507.17,0.00024931,3]
[385691181,1757971845241,-847.45018724,0.00024931,3]
[385691182,1757971845250,-480.0,0.00024931,3]
[385691183,1757971845259,-480.0,0.00024931,3]
[385691184,1757971845268,-480.0,0.00024931,3]
[385691185,1757971845277,-1405.61,0.00024931,3]
[385691186,1757971845286,-480.0,0.00024931,3]
[385691187,1757971845295,-480.0,0.00024931,3]
[385691188,1757971845305,-495.69509768,0.00024931,3]
[385691189,1757971845316,-480.0,0.00024931,3]
[385691190,1757971845324,-480.0,0.00024931,3]
[385691191,1757971845334,-480.0,0.00024931,3]
[385691192,1757971845343,-480.0,0.00024931,3]
[385691193,1757971845352,-831.95,0.00024931,3]
[385691194,1757971845361,-480.0,0.00024931,3]
[385691195,1757971845370,-480.0,0.00024931,3]
[385691196,1757971845380,-480.0,0.00024931,3]
[385691197,1757971845389,-480.0,0.00024931,3]
[385691198,1757971845398,-480.0,0.00024931,3]
[385691199,1757971845407,-480.0,0.00024931,3]
[385691200,1757971845416,-480.0,0.00024931,3]
[385691201,1757971845425,-480.0,0.00024931,3]
[385691202,1757971845434,-480.0,0.00024931,3]
[385691203,1757971845444,-480.0,0.00024931,3]
[385691204,1757971845452,-500.0,0.00024932,2]
[385691205,1757971845461,-420.0,0.00024937,2]
[385691206,1757971845470,-420.0,0.00024937,2]
[385691207,1757971845479,-664.29073065,0.00024959,2]
[385691208,1757971845489,-500.0,0.00024973,2]
[385691209,1757971845498,-500.0,0.00024973,2]
[385691210,1757971845507,-500.0,0.00024973,2]
[385691211,1757971845515,-501.09002697,0.00024973,2]
[385691212,1757971845524,-500.0,0.00024973,2]
[385691214,1757971845534,-160.79332558,0.00024973,2]
[385691215,1757971845543,-500.0,0.00024973,2]
[385691216,1757971845551,-202.73440977,0.00024973,2]
[385691217,1757971845560,-500.0,0.00024973,2]
[385691218,1757971845569,-174.53655471,0.00024973,2]
[385691219,1757971845578,-500.0,0.00024973,2]
[385691220,1757971845588,-500.0,0.00024973,2]
[385691222,1757971845597,-500.77902765,0.00024973,2]
[385691223,1757971845606,-500.0,0.00024973,2]
[385691225,1757971845615,-500.0,0.00024973,2]
[385691226,1757971845624,-500.0,0.00024973,2]
[385691227,1757971845633,-502.08173503,0.00024973,2]
[385691228,1757971845642,-501.26629294,0.00024973,2]
[385691230,1757971845651,-500.0,0.00024973,2]
[385691231,1757971845660,-168.0,0.00024981,2]
[385691232,1757971845669,-249.0,0.00024993,2]
[385691233,1757971845679,-785.86153769,0.00024999,2]
[385691234,1757971845688,-503.71236141,0.00025,2]
[385691235,1757971845697,-43999.41065569,0.00025,7]
[385691236,1757971845707,-233.24851325,0.00025,7]
[385691237,1757971845716,-151.0,0.00025,7]
[385691238,1757971845725,-151.0,0.00025,7]
[385691239,1757971845735,-160.0,0.00025,7]
[385691241,1757971845747,-531.33695587,0.00025,7]
[385691242,1757971845756,-417.15472785,0.00025,7]
[385691243,1757971845766,-847.45018724,0.00025,7]
[385691244,1757971845775,-160.0,0.00025,7]
[385691245,1757971845785,-168.0,0.00025024,2]
[385691246,1757971845796,-977.0,0.0002504,2]
[385691247,1757971845884,-635.725,0.0002504,2]
[385691248,1757971845894,-2156.0,0.0002504,2]
[385691249,1757971845903,-442.269,0.0002504,2]
[385691250,1757971845912,-411.054,0.0002504,2]
[385691251,1757971845922,-1631.0,0.00025053,2]
[385691252,1757971845931,-2696.0,0.00025095,2]
[385691253,1757971845940,-360.0,0.00025096,2]
[385691254,1757971845949,-150.0,0.00025148,2]
[385691255,1757971845959,-208.842,0.00025148,2]
[385691256,1757971845968,-250.0,0.00025148,2]
[385691257,1757971845977,-300.0,0.00025149,20]
[385691258,1757971845986,-300.0,0.00025149,20]
[385691259,1757971845996,-300.0,0.00025149,20]
[385691260,1757971846005,-300.0,0.00025149,20]
[385691261,1757971846015,-300.0,0.00025149,20]
[385691262,1757971846024,-300.0,0.00025149,20]
[385691263,1757971846033,-300.0,0.00025149,20]
[385691264,1757971846042,-300.0,0.00025149,20]
[385691265,1757971846052,-300.0,0.00025149,20]
[385691266,1757971846062,-300.0,0.00025149,20]
[385691267,1757971846072,-300.0,0.00025149,20]
[385691268,1757971846082,-300.0,0.00025149,20]
[385691269,1757971846092,-300.0,0.00025149,20]
[385691270,1757971846101,-300.0,0.00025149,20]
[385691272,1757971846111,-300.0,0.00025149,20]
[385691273,1757971846120,-600.0,0.00025149,20]
[385691275,1757971846128,-224.601,0.0002515,2]
[385691276,1757971846137,-250.0,0.0002515,2]
[385691277,1757971846146,-203.009,0.0002515,2]
[385691278,1757971846155,-262.482,0.0002515,2]
[385691279,1757971846165,-189.759,0.0002515,2]
[385691280,1757971846174,-249.0,0.00025156,2]
[385691281,1757971846183,-249.0,0.0002516,2]
[385691282,1757971846191,-151.0,0.00025164,7]
[385691283,1757971846201,-1000.0,0.00025164,2]
[385691284,1757971846209,-1500.0,0.00025164,2]
[385691285,1757971846219,-2000.0,0.00025164,2]
[385691286,1757971846227,-1500.0,0.00025164,2]
[385691287,1757971846237,-1500.0,0.00025164,2]
[385691288,1757971846247,-500.0,0.00025191,2]
[385691289,1757971846256,-374.12626269,0.00025205,3]
[385691290,1757971846265,-480.0,0.00025205,3]
[385691291,1757971846274,-480.0,0.00025205,3]
[385691292,1757971846283,-480.0,0.00025205,3]
[385691293,1757971846292,-480.0,0.00025205,3]
[385691294,1757971846301,-480.0,0.00025205,3]
[385691295,1757971846311,-480.0,0.00025205,3]
[385691296,1757971846320,-1444.88,0.00025205,3]
[385691297,1757971846329,-731.4,0.00025205,3]
[385691298,1757971846338,-480.0,0.00025205,3]
[385691299,1757971846348,-480.0,0.00025205,3]
[385691300,1757971846358,-480.0,0.00025205,3]
[385691301,1757971846367,-1405.61,0.00025205,3]
[385691302,1757971846376,-480.0,0.00025205,3]
[385691303,1757971846385,-191.02585643,0.00025205,3]
[385691304,1757971846395,-831.95,0.00025205,3]
[385691305,1757971846404,-480.0,0.00025205,3]
[385691306,1757971846413,-480.0,0.00025205,3]
[385691308,1757971846422,-480.0,0.00025205,3]
[385691309,1757971846431,-480.0,0.00025205,3]
[385691311,1757971846440,-500.0,0.00025206,2]
[385691313,1757971846449,-1000.0,0.00025221,2]
[385691315,1757971846458,-1000.0,0.00025221,2]
[385691317,1757971846467,-300.0,0.00025221,2]
[385691319,1757971846476,-168.0,0.00025224,2]
[385691320,1757971846485,-168.0,0.00025295,2]
[385691321,1757971846494,-2847.96,0.000253,7]
[385691322,1757971846504,-1000.0,0.00025321,2]
[385691323,1757971846512,-4447.63257045,0.00025393,2]
[385691324,1757971846521,-168.0,0.00025411,2]
[385691326,1757971846531,-249.0,0.00025415,2]
[385691328,1757971846540,-151.0,0.00025433,7]
[385691330,1757971846549,-151.0,0.00025433,7]
[385691331,1757971846558,-154.881776,0.00025433,7]
[385691333,1757971846567,-2500.0,0.00025464,2]
[385691334,1757971846576,-2500.0,0.00025464,2]
[385691335,1757971846586,-2500.0,0.00025464,2]
[385691336,1757971846595,-2500.0,0.00025464,2]
[385691337,1757971846604,-2500.0,0.00025464,2]
[385691338,1757971846613,-1000.0,0.00025464,2]
[385691339,1757971846622,-2500.0,0.00025464,2]
[385691340,1757971846631,-2500.0,0.00025464,2]
[385691341,1757971846640,-1505.19897323,0.00025464,2]
[385691342,1757971846649,-2000.0,0.00025464,2]
[385691343,1757971846660,-500.0,0.00025465,2]
[385691344,1757971846669,-900.0,0.00025469,3]
[385691345,1757971846679,-500.0,0.00025473,2]
[385691346,1757971846688,-500.0,0.00025473,2]
[385691347,1757971846697,-480.0,0.00025479,3]
[385691348,1757971846706,-198.19258445,0.00025479,3]
[385691349,1757971846716,-480.0,0.00025479,3]
[385691350,1757971846725,-480.0,0.00025479,3]
[385691351,1757971846734,-480.0,0.00025479,3]
[385691352,1757971846744,-1444.88,0.00025479,3]
[385691353,1757971846753,-731.4,0.00025479,3]
[385691354,1757971846762,-480.0,0.00025479,3]
[385691355,1757971846771,-480.0,0.00025479,3]
[385691356,1757971846780,-480.0,0.00025479,3]
[385691357,1757971846789,-1405.61,0.00025479,3]
[385691358,1757971846798,-371.40229337,0.00025479,3]
[385691359,1757971846808,-831.95,0.00025479,3]
[385691360,1757971846817,-553.005163,0.00025479,3]
[385691361,1757971846831,-384.11064526,0.00025479,3]
[385691362,1757971846844,-480.0,0.00025479,3]
[385691363,1757971846856,-480.0,0.00025479,3]
[385691364,1757971846868,-500.0,0.0002548,2]
[385691365,1757971846881,-168.0,0.00025499,2]
[385691366,1757971846894,-17693.97,0.000255,7]
[385691367,1757971846906,-1000.0,0.00025521,2]
[385691368,1757971846918,-1000.0,0.00025521,2]
[385691369,1757971846931,-549.04545887,0.00025521,2]
[385691370,1757971846944,-1000.0,0.00025521,2]
[385691371,1757971846956,-500.81987614,0.00025521,2]
[385691372,1757971846968,-1000.0,0.00025521,2]
[385691373,1757971846982,-1000.0,0.00025521,2]
[385691374,1757971846994,-500.0,0.00025521,2]
[385691375,1757971847005,-1000.0,0.00025521,2]
[385691376,1757971847017,-1000.0,0.00025521,2]
[385691377,1757971847029,-1000.0,0.00025521,2]
[385691378,1757971847040,-500.08724029,0.00025521,2]
[385691379,1757971847053,-168.0,0.00025527,2]
[385691380,1757971847066,-249.0,0.0002557,2]
[385691381,1757971847077,-460.0,0.00025644,2]
[385691382,1757971847088,-4260.13465857,0.00025679,2]
[385691383,1757971847098,-500.0,0.00025739,2]
[385691384,1757971847110,-249.0,0.00025742,2]
[385691385,1757971847120,-480.0,0.00025753,3]
[385691386,1757971847132,-480.0,0.00025753,3]
[385691387,1757971847144,-480.0,0.00025753,3]
[385691388,1757971847156,-1444.88,0.00025753,3]
[385691389,1757971847169,-731.4,0.00025753,3]
[385691390,1757971847181,-480.0,0.00025753,3]
[385691391,1757971847195,-480.0,0.00025753,3]
[385691392,1757971847208,-206.65572896,0.00025753,3]
[385691393,1757971847223,-1405.61,0.00025753,3]
[385691394,1757971847233,-831.95,0.00025753,3]
[385691395,1757971847243,-480.0,0.00025753,3]
[385691396,1757971847253,-480.0,0.00025753,3]
[385691397,1757971847265,-500.0,0.00025754,2]
[385691398,1757971847285,-3227.31405266,0.00025755,2]
[385691399,1757971847297,-1837.68486723,0.00025757,2]
[385691400,1757971847308,-1500.0,0.00025768,2]
[385691401,1757971847319,-518.68054904,0.00025768,2]
[385691402,1757971847330,-450.0,0.00025768,2]
[385691403,1757971847342,-417.15472785,0.000258,3]
[385691404,1757971847354,-98104.0,0.0002587,7]
[385691405,1757971847364,-160.0,0.0002587,7]
[385691406,1757971847374,-150.0,0.00025873,2]
[385691407,1757971847385,-417.15472785,0.000259,7]
[385691408,1757971847395,-10592.81255375,0.000259,7]
[385691409,1757971847409,-4447.63257045,0.00025986,2]
[385691410,1757971847420,-250.0,0.00025992,2]
[385691411,1757971847432,-664.29073065,0.00025994,2]
[385691412,1757971847443,-37414.70540317,0.00026,10]
[385691413,1757971847454,-160.0,0.00026,10]
[385691414,1757971847465,-233.24851325,0.00026,10]
[385691415,1757971847476,-161.208564,0.00026,7]
[385691416,1757971847488,-158.773915,0.00026,10]
[385691417,1757971847498,-151.863386,0.00026,10]
[385691418,1757971847509,-151.863386,0.00026,10]
[385691419,1757971847520,-151.863386,0.00026,10]
[385691420,1757971847532,-531.33695587,0.00026,10]
[385691421,1757971847542,-417.15472785,0.00026,10]
[385691422,1757971847553,-847.45018724,0.00026,10]
[385691423,1757971847564,-160.0,0.00026,10]
[385691424,1757971847575,-160.0,0.00026,10]
[385691425,1757971847587,-1000.0,0.00026012,2]
[385691426,1757971847598,-1978.87934572,0.00026012,2]
[385691427,1757971847609,-2500.0,0.00026012,2]
[385691428,1757971847621,-3000.0,0.00026012,2]
[385691429,1757971847632,-500.0,0.00026013,2]
[385691430,1757971847643,-500.0,0.00026021,2]
[385691431,1757971847654,-1000.0,0.00026021,2]
[385691432,1757971847664,-480.0,0.00026027,3]
[385691433,1757971847675,-480.0,0.00026027,3]
[385691434,1757971847686,-480.0,0.00026027,3]
[385691435,1757971847698,-1444.88,0.00026027,3]
[385691436,1757971847708,-731.4,0.00026027,3]
[385691437,1757971847718,-480.0,0.00026027,3]
[385691438,1757971847727,-480.0,0.00026027,3]
[385691439,1757971847737,-1405.61,0.00026027,3]
[385691440,1757971847750,-831.95,0.00026027,3]
[385691441,1757971847759,-1279.77,0.00026027,4]
[385691442,1757971847769,-480.0,0.00026027,3]
[385691443,1757971847778,-430.70613553,0.00026027,3]
[385691444,1757971847787,-500.0,0.00026028,2]
[385691445,1757971847796,-1500.0,0.00026068,2]
[385691446,1757971847806,-1500.0,0.00026068,2]
[385691447,1757971847815,-1500.0,0.00026068,2]
[385691448,1757971847827,-443.13928742,0.00026068,2]
[385691449,1757971847838,-683.36758378,0.00026068,2]
[385691450,1757971847848,-520.14480571,0.00026068,2]
[385691451,1757971847857,-1500.0,0.00026068,2]
[385691452,1757971847871,-1500.0,0.00026068,2]
[385691453,1757971847880,-168.0,0.00026094,2]
[385691454,1757971847890,-336.0,0.00026136,7]
[385691455,1757971847899,-560.0,0.00026192,2]
[385691456,1757971847909,-249.0,0.00026257,2]
[385691457,1757971848054,-249.0,0.00026259,2]
[385691458,1757971848069,-500.0,0.00026287,2]
[385691459,1757971848079,-480.0,0.00026301,3]
[385691460,1757971848088,-480.0,0.00026301,3]
[385691461,1757971848097,-480.0,0.00026301,3]